fUST/lending_fUST_20240824
["ID","MTS","AMOUNT","RATE_DAILY","PERIOD"]
[335772558,1724484660958,-500.0,0.00014245,2]
[335772559,1724484660969,-239.35549867,0.00014245,2]
[335772560,1724484660980,-209.73889129,0.00014245,2]
[335772561,1724484660990,-178.124472,0.00014246,2]
[335772562,1724484660999,-178.124472,0.00014246,2]
[335772563,1724484661008,-178.124472,0.00014246,2]
[335772564,1724484661018,-198.403384,0.00014246,2]
[335772565,1724484661029,-198.403384,0.00014246,2]
[335772566,1724484661039,-198.403384,0.00014246,2]
[335772567,1724484661062,-198.403384,0.00014246,2]
[335772568,1724484661071,-198.403384,0.00014246,2]
[335772569,1724484661080,-198.403384,0.00014246,2]
[335772570,1724484661091,-185.096087,0.00014246,2]
[335772571,1724484661100,-151.0,0.00014246,2]
[335772572,1724484661110,-151.0,0.00014246,2]
[335772573,1724484661119,-151.0,0.00014246,2]
[335772574,1724484661129,-151.0,0.00014246,2]
[335772575,1724484661139,-272.240795,0.00014246,2]
[335772576,1724484661148,-204.026499,0.00014246,2]
[335772577,1724484661158,-204.026499,0.00014246,2]
[335772578,1724484661168,-204.026499,0.00014246,2]
[335772579,1724484661177,-204.026499,0.00014246,2]
[335772580,1724484661187,-204.026499,0.00014246,2]
[335772581,1724484661196,-204.026499,0.00014246,2]
[335772582,1724484661205,-204.026499,0.00014246,2]
[335772583,1724484661214,-204.026499,0.00014246,2]
[335772584,1724484661224,-151.0,0.00014246,2]
[335772585,1724484661234,-151.0,0.00014246,2]
[335772586,1724484661246,-151.0,0.00014246,2]
[335772587,1724484661256,-151.0,0.00014246,2]
[335772588,1724484661265,-151.0,0.00014246,2]
[335772589,1724484661274,-151.0,0.00014246,2]
[335772590,1724484661283,-151.0,0.00014246,2]
[335772591,1724484661294,-151.0,0.00014246,2]
[335772592,1724484661304,-215.789927,0.00014246,2]
[335772593,1724484661313,-433.045272,0.00014246,2]
[335772594,1724484661324,-433.045272,0.00014246,2]
[335772595,1724484661333,-433.045272,0.00014246,2]
[335772596,1724484661342,-433.045272,0.00014246,2]
[335772597,1724484661352,-433.045272,0.00014246,2]
[335772598,1724484661362,-433.045272,0.00014246,2]
[335772599,1724484661371,-433.045272,0.00014246,2]
[335772600,1724484661381,-433.045272,0.00014246,2]
[335772601,1724484661392,-510.20133375,0.00014246,2]
[335772602,1724484661402,-708.86,0.00014246,2]
[335772603,1724484661412,-500.0,0.00014246,2]
[335772604,1724484661424,-541.35998239,0.00014246,2]
[335772605,1724484661434,-500.0,0.00014246,2]
[335772606,1724484661444,-1234.591447,0.00014246,2]
[335772607,1724484661456,-500.0,0.00014246,2]
[335772608,1724484661465,-1234.591447,0.00014246,2]
[335772609,1724484661474,-500.0,0.00014246,2]
[335772610,1724484661484,-1234.591447,0.00014246,2]
[335772611,1724484661493,-1234.591447,0.00014246,2]
[335772612,1724484661506,-660.15,0.00014246,2]
[335772613,1724484661516,-884.71,0.00014246,2]
[335772614,1724484661525,-500.0,0.00014246,2]
[335772615,1724484661537,-645.93641636,0.00014246,2]
[335772616,1724484661549,-953.55,0.00014246,2]
[335772617,1724484661558,-500.0,0.00014246,2]
[335772618,1724484661568,-500.0,0.00014246,2]
[335772619,1724484661579,-500.0,0.00014246,2]
[335772620,1724484661589,-500.0,0.00014246,2]
[335772621,1724484661598,-500.0,0.00014246,2]
[335772622,1724484661608,-343.474635,0.00014246,2]
[335772623,1724484661618,-343.474635,0.00014246,2]
[335772624,1724484661627,-554.91,0.00014246,2]
[335772625,1724484661637,-501.03401898,0.00014246,2]
[335772626,1724484661646,-500.0,0.00014246,2]
[335772627,1724484661656,-343.474635,0.00014246,2]
[335772628,1724484661666,-343.474635,0.00014246,2]
[335772629,1724484661676,-500.0,0.00014246,2]
[335772630,1724484661686,-500.0,0.00014246,2]
[335772631,1724484661695,-500.0,0.00014246,2]
[335772632,1724484661705,-740.08,0.00014246,2]
[335772633,1724484661716,-537.11,0.00014246,2]
[335772634,1724484661726,-528.47,0.00014246,2]
[335772635,1724484661736,-500.0,0.00014246,2]
[335772636,1724484661746,-500.0,0.00014246,2]
[335772637,1724484661756,-150.0,0.00014246,2]
[335772638,1724484661766,-500.0,0.00014246,2]
[335772639,1724484661776,-500.0,0.00014246,2]
[335772640,1724484661787,-532.75,0.00014246,2]
[335772641,1724484661798,-500.0,0.00014246,2]
[335772642,1724484661808,-500.0,0.00014246,2]
[335772643,1724484661818,-500.0,0.00014246,2]
[335772644,1724484661829,-500.0,0.00014246,2]
[335772645,1724484661840,-500.0,0.00014246,2]
[335772646,1724484661851,-500.0,0.00014246,2]
[335772647,1724484661861,-689.97,0.00014246,2]
[335772648,1724484661870,-500.0,0.00014246,2]
[335772649,1724484661881,-500.0,0.00014246,2]
[335772650,1724484661891,-500.0,0.00014246,2]
[335772651,1724484661901,-500.0,0.00014246,2]
[335772652,1724484661912,-500.0,0.00014246,2]
[335772653,1724484661922,-500.0,0.00014246,2]
[335772654,1724484661933,-500.0,0.00014246,2]
[335772655,1724484661944,-805.95,0.00014246,2]
[335772656,1724484661955,-500.0,0.00014246,2]
[335772657,1724484661966,-500.0,0.00014246,2]
[335772658,1724484661977,-943.71,0.00014246,2]
[335772659,1724484661988,-500.0,0.00014246,2]
[335772660,1724484661998,-151.0,0.00014246,2]
[335772661,1724484662008,-151.0,0.00014246,2]
[335772662,1724484662021,-151.0,0.00014246,2]
[335772663,1724484662030,-691.62847,0.00014246,2]
[335772664,1724484662041,-691.62847,0.00014246,2]
[335772665,1724484662052,-500.0,0.00014246,2]
[335772666,1724484662062,-691.62847,0.00014246,2]
[335772667,1724484662071,-500.0,0.00014246,2]
[335772668,1724484662081,-500.0,0.00014246,2]
[335772669,1724484662091,-514.58222968,0.00014246,2]
[335772670,1724484662101,-691.62847,0.00014246,2]
[335772671,1724484662111,-691.62847,0.00014246,2]
[335772672,1724484662121,-691.62847,0.00014246,2]
[335772673,1724484662132,-576.99,0.00014246,2]
[335772674,1724484662143,-500.0,0.00014246,2]
[335772675,1724484662154,-381.29143975,0.00014246,2]
[335772676,1724484662163,-500.0,0.00014246,2]
[335772677,1724484662173,-598.20045849,0.00014246,2]
[335772678,1724484662182,-500.0,0.00014246,2]
[335772679,1724484662192,-503.11541258,0.00014246,2]
[335772680,1724484662201,-638.25,0.00014246,2]
[335772681,1724484662211,-500.0,0.00014246,2]
[335772682,1724484662222,-500.0,0.00014246,2]
[335772683,1724484662231,-859.2,0.00014246,2]
[335772684,1724484662241,-202.25023143,0.00014246,2]
[335772685,1724484662251,-500.0,0.00014246,2]
[335772686,1724484662261,-500.0,0.00014246,2]
[335772687,1724484662271,-500.0,0.00014246,2]
[335772688,1724484662282,-524.69,0.00014246,2]
[335772689,1724484662294,-500.0,0.00014246,2]
[335772690,1724484662305,-500.0,0.00014246,2]
[335772691,1724484662316,-1117.25,0.00014246,2]
[335772692,1724484662326,-500.0,0.00014246,2]
[335772693,1724484662337,-500.0,0.00014246,2]
[335772694,1724484662348,-500.0,0.00014246,2]
[335772695,1724484662359,-500.0,0.00014246,2]
[335772696,1724484662368,-500.0,0.00014246,2]
[335772697,1724484662377,-500.0,0.00014246,2]
[335772698,1724484662386,-500.0,0.00014246,2]
[335772699,1724484662396,-500.0,0.00014246,2]
[335772700,1724484662405,-581.01,0.00014246,2]
[335772701,1724484662414,-500.3351258,0.00014246,2]
[335772702,1724484662425,-151.0,0.00014246,2]
[335772703,1724484662436,-151.0,0.00014246,2]
[335772704,1724484662446,-151.0,0.00014246,2]
[335772705,1724484662458,-1264.36,0.00014246,2]
[335772706,1724484662468,-500.0,0.00014246,2]
[335772707,1724484662478,-500.0,0.00014246,2]
[335772708,1724484662488,-500.0,0.00014246,2]
[335772709,1724484662503,-500.36419857,0.00014246,2]
[335772710,1724484662512,-500.0,0.00014246,2]
[335772711,1724484662521,-500.0,0.00014246,2]
[335772712,1724484662531,-824.18,0.00014246,2]
[335772713,1724484662541,-151.0,0.00014246,2]
[335772714,1724484662551,-386.26596182,0.00014246,2]
[335772715,1724484662561,-151.0,0.00014246,2]
[335772716,1724484662570,-635.83,0.00014246,2]
[335772717,1724484662583,-500.0,0.00014246,2]
[335772718,1724484662594,-500.0,0.00014246,2]
[335772719,1724484662605,-561.59264497,0.00014246,2]
[335772720,1724484662616,-992.94,0.00014246,2]
[335772721,1724484662626,-566.24,0.00014246,2]
[335772722,1724484662636,-500.0,0.00014246,2]
[335772723,1724484662854,-500.0,0.00014246,2]
[335772724,1724484662864,-500.0,0.00014246,2]
[335772725,1724484662873,-559.02,0.00014246,2]
[335772726,1724484662883,-500.0,0.00014246,2]
[335772727,1724484662893,-799.71,0.00014246,2]
[335772728,1724484662902,-1568.65,0.00014246,2]
[335772729,1724484662911,-600.1766045,0.00014246,2]
[335772730,1724484662921,-542.47,0.00014246,2]
[335772731,1724484662931,-622.28278891,0.00014246,2]
[335772732,1724484662940,-500.0,0.00014246,2]
[335772733,1724484662950,-1099.68,0.00014246,2]
[335772734,1724484662959,-500.0,0.00014246,2]
[335772735,1724484662970,-942.1,0.00014246,2]
[335772736,1724484662980,-500.0,0.00014246,2]
[335772737,1724484662991,-500.0,0.00014246,2]
[335772738,1724484663002,-1275.95,0.00014246,2]
[335772739,1724484663012,-500.0,0.00014246,2]
[335772740,1724484663021,-500.0,0.00014246,2]
[335772741,1724484663032,-822.14,0.00014246,2]
[335772742,1724484663042,-559.504193,0.00014246,2]
[335772743,1724484663052,-559.504193,0.00014246,2]
[335772744,1724484663062,-559.504193,0.00014246,2]
[335772745,1724484663072,-500.0,0.00014246,2]
[335772746,1724484663082,-500.0,0.00014246,2]
[335772747,1724484663091,-500.0,0.00014246,2]
[335772748,1724484663100,-500.0,0.00014246,2]
[335772749,1724484663110,-559.504193,0.00014246,2]
[335772750,1724484663119,-724.2,0.00014246,2]
[335772751,1724484663129,-559.504193,0.00014246,2]
[335772752,1724484663138,-559.504193,0.00014246,2]
[335772753,1724484663147,-977.572772,0.00014246,2]
[335772754,1724484663156,-977.572772,0.00014246,2]
[335772755,1724484663166,-500.0,0.00014246,2]
[335772756,1724484663176,-500.0,0.00014246,2]
[335772757,1724484663185,-977.572772,0.00014246,2]
[335772758,1724484663195,-500.0,0.00014246,2]
[335772759,1724484663205,-977.572772,0.00014246,2]
[335772760,1724484663215,-500.0,0.00014246,2]
[335772761,1724484663224,-977.572772,0.00014246,2]
[335772762,1724484663234,-504.06,0.00014246,2]
[335772763,1724484663243,-977.572772,0.00014246,2]
[335772764,1724484663252,-500.0,0.00014246,2]
[335772765,1724484663262,-502.7374095,0.00014246,2]
[335772766,1724484663271,-170.47595762,0.00014246,2]
[335772767,1724484663281,-717.61,0.00014246,2]
[335772768,1724484663290,-500.0,0.00014246,2]
[335772769,1724484663301,-567.4,0.00014246,2]
[335772770,1724484663310,-500.0,0.00014246,2]
[335772771,1724484663319,-500.0,0.00014246,2]
[335772772,1724484663329,-571.72,0.00014246,2]
[335772773,1724484663338,-573.9,0.00014246,2]
[335772774,1724484663347,-500.0,0.00014246,2]
[335772775,1724484663357,-500.0,0.00014246,2]
[335772776,1724484663366,-500.0,0.00014246,2]
[335772777,1724484663375,-500.0,0.00014246,2]
[335772778,1724484663385,-500.0,0.00014246,2]
[335772779,1724484663395,-500.0,0.00014246,2]
[335772780,1724484663405,-500.0,0.00014246,2]
[335772781,1724484663415,-500.0,0.00014246,2]
[335772782,1724484663425,-864.02,0.00014246,2]
[335772783,1724484663435,-500.0,0.00014246,2]
[335772784,1724484663445,-913.68,0.00014246,2]
[335772785,1724484663455,-500.0,0.00014246,2]
[335772786,1724484663466,-500.0,0.00014246,2]
[335772787,1724484663476,-500.0,0.00014246,2]
[335772788,1724484663486,-705.74,0.00014246,2]
[335772789,1724484663496,-500.0,0.00014246,2]
[335772790,1724484663509,-636.67,0.00014246,2]
[335772791,1724484663519,-821.99,0.00014246,2]
[335772792,1724484663528,-500.0,0.00014246,2]
[335772793,1724484663538,-500.0,0.00014246,2]
[335772794,1724484663549,-555.96,0.00014246,2]
[335772795,1724484663560,-500.0,0.00014246,2]
[335772796,1724484663570,-500.0,0.00014246,2]
[335772797,1724484663583,-500.0,0.00014246,2]
[335772798,1724484663594,-393.31312517,0.00014246,2]
[335772799,1724484663604,-500.0,0.00014246,2]
[335772800,1724484663615,-500.0,0.00014246,2]
[335772801,1724484663625,-1087.91,0.00014246,2]
[335772802,1724484663634,-500.0,0.00014246,2]
[335772803,1724484663644,-177.411499,0.00014246,2]
[335772804,1724484663654,-177.411499,0.00014246,2]
[335772805,1724484663664,-177.411499,0.00014246,2]
[335772806,1724484663674,-500.0,0.00014246,2]
[335772807,1724484663683,-177.411499,0.00014246,2]
[335772808,1724484663693,-177.411499,0.00014246,2]
[335772809,1724484663702,-177.411499,0.00014246,2]
[335772810,1724484663712,-500.32916369,0.00014246,2]
[335772811,1724484663721,-500.0,0.00014246,2]
[335772812,1724484663730,-2422.02,0.00014246,2]
[335772813,1724484663740,-536.24,0.00014246,2]
[335772814,1724484663749,-500.0,0.00014246,2]
[335772815,1724484663758,-1081.36,0.00014246,2]
[335772816,1724484663767,-654.21,0.00014246,2]
[335772817,1724484663778,-500.0,0.00014246,2]
[335772818,1724484663788,-1081.07,0.00014246,2]
[335772819,1724484663800,-3010.56,0.00014246,2]
[335772820,1724484663809,-500.0,0.00014246,2]
[335772821,1724484663819,-500.0,0.00014246,2]
[335772822,1724484663828,-500.0,0.00014246,2]
[335772823,1724484663838,-2764.61,0.00014246,2]
[335772824,1724484663849,-500.0,0.00014246,2]
[335772825,1724484663860,-2104.39,0.00014246,2]
[335772826,1724484663869,-500.0,0.00014246,2]
[335772827,1724484663879,-500.0,0.00014246,2]
[335772828,1724484663889,-519.67,0.00014246,2]
[335772829,1724484663898,-151.0,0.00014246,2]
[335772830,1724484663909,-151.0,0.00014246,2]
[335772831,1724484663919,-151.0,0.00014246,2]
[335772832,1724484663928,-500.0,0.00014246,2]
[335772833,1724484663938,-500.0,0.00014246,2]
[335772834,1724484663948,-500.0,0.00014246,2]
[335772835,1724484663958,-151.0,0.00014246,2]
[335772836,1724484663968,-1060.76,0.00014246,2]
[335772837,1724484663978,-714.61,0.00014246,2]
[335772838,1724484663989,-151.924538,0.00014246,2]
[335772839,1724484663998,-500.0,0.00014246,2]
[335772840,1724484664007,-500.0,0.00014246,2]
[335772841,1724484664018,-500.0,0.00014246,2]
[335772842,1724484664028,-500.64961572,0.00014246,2]
[335772843,1724484664038,-212.66,0.00014246,2]
[335772844,1724484664049,-152.669309,0.00014246,2]
[335772845,1724484664059,-568.88,0.00014246,2]
[335772846,1724484664068,-152.669309,0.00014246,2]
[335772847,1724484664077,-152.669309,0.00014246,2]
[335772848,1724484664086,-1180.85,0.00014246,2]
[335772849,1724484664096,-761.62,0.00014246,2]
[335772850,1724484664105,-500.0,0.00014246,2]
[335772851,1724484664114,-152.669309,0.00014246,2]
[335772852,1724484664124,-321.112946,0.00014246,2]
[335772853,1724484664134,-152.669309,0.00014246,2]
[335772854,1724484664144,-152.669309,0.00014246,2]
[335772855,1724484664154,-321.112946,0.00014246,2]
[335772856,1724484664164,-321.112946,0.00014246,2]
[335772857,1724484664173,-543.85848,0.00014246,2]
[335772858,1724484664182,-543.85848,0.00014246,2]
[335772859,1724484664191,-543.85848,0.00014246,2]
[335772860,1724484664201,-1276.52,0.00014246,2]
[335772861,1724484664210,-516.89881684,0.00014246,2]
[335772862,1724484664219,-543.85848,0.00014246,2]
[335772863,1724484664228,-543.85848,0.00014246,2]
[335772864,1724484664237,-717.65,0.00014246,2]
[335772865,1724484664247,-543.85848,0.00014246,2]
[335772866,1724484664257,-500.0,0.00014246,2]
[335772867,1724484664266,-500.0,0.00014246,2]
[335772868,1724484664276,-500.0,0.00014246,2]
[335772869,1724484664286,-1069.52,0.00014246,2]
[335772870,1724484664295,-151.0,0.00014246,2]
[335772871,1724484664305,-151.0,0.00014246,2]
[335772872,1724484664314,-151.0,0.00014246,2]
[335772873,1724484664324,-235.181949,0.00014246,2]
[335772874,1724484664333,-235.181949,0.00014246,2]
[335772875,1724484664342,-235.181949,0.00014246,2]
[335772876,1724484664351,-571.89,0.00014246,2]
[335772877,1724484664360,-500.0,0.00014246,2]
[335772878,1724484664369,-235.181949,0.00014246,2]
[335772879,1724484664379,-235.181949,0.00014246,2]
[335772880,1724484664388,-235.181949,0.00014246,2]
[335772881,1724484664398,-500.0,0.00014246,2]
[335772882,1724484664407,-572.58,0.00014246,2]
[335772883,1724484664417,-967.87,0.00014246,2]
[335772884,1724484664426,-3232.959117,0.00014246,2]
[335772885,1724484664436,-500.0,0.00014246,2]
[335772886,1724484664445,-3232.959117,0.00014246,2]
[335772887,1724484664455,-3232.959117,0.00014246,2]
[335772888,1724484664465,-3232.959117,0.00014246,2]
[335772889,1724484664474,-3232.959117,0.00014246,2]
[335772890,1724484664484,-570.74,0.00014246,2]
[335772891,1724484664494,-3232.959117,0.00014246,2]
[335772892,1724484664505,-500.0,0.00014246,2]
[335772893,1724484664516,-500.0,0.00014246,2]
[335772894,1724484664526,-500.0,0.00014246,2]
[335772895,1724484664535,-500.0,0.00014246,2]
[335772896,1724484664545,-500.0,0.00014246,2]
[335772897,1724484664555,-565.21,0.00014246,2]
[335772898,1724484664564,-1312.79,0.00014246,2]
[335772899,1724484664573,-224.03851653,0.00014246,2]
[335772900,1724484664583,-500.0,0.00014246,2]
[335772901,1724484664593,-998.8,0.00014246,2]
[335772902,1724484664603,-500.0,0.00014246,2]
[335772903,1724484664613,-500.0,0.00014246,2]
[335772904,1724484664622,-2016.11,0.00014246,2]
[335772905,1724484664631,-500.0,0.00014246,2]
[335772906,1724484664640,-1428.42,0.00014246,2]
[335772907,1724484664650,-746.43,0.00014246,2]
[335772908,1724484664659,-500.0,0.00014246,2]
[335772909,1724484664668,-500.0,0.00014246,2]
[335772910,1724484664678,-1670.171991,0.00014246,2]
[335772911,1724484664687,-1670.171991,0.00014246,2]
[335772912,1724484664696,-1670.171991,0.00014246,2]
[335772913,1724484664706,-1670.171991,0.00014246,2]
[335772914,1724484664715,-1670.171991,0.00014246,2]
[335772915,1724484664725,-1670.171991,0.00014246,2]
[335772916,1724484664734,-691.98,0.00014246,2]
[335772917,1724484664743,-500.0,0.00014246,2]
[335772918,1724484664753,-1196.77,0.00014246,2]
[335772919,1724484664762,-1525.1,0.00014246,2]
[335772920,1724484664771,-714.57,0.00014246,2]
[335772921,1724484664780,-500.0,0.00014246,2]
[335772922,1724484664789,-500.0,0.00014246,2]
[335772923,1724484664799,-1800.54,0.00014246,2]
[335772924,1724484664809,-754.42,0.00014246,2]
[335772925,1724484664818,-500.0,0.00014246,2]
[335772926,1724484664827,-1400.52,0.00014246,2]
[335772927,1724484664837,-500.0,0.00014246,2]
[335772928,1724484664846,-1563.05,0.00014246,2]
[335772929,1724484664855,-957.88,0.00014246,2]
[335772930,1724484664865,-500.0,0.00014246,2]
[335772931,1724484664874,-533.09,0.00014246,2]
[335772932,1724484664883,-500.0,0.00014246,2]
[335772933,1724484664893,-730.79,0.00014246,2]
[335772934,1724484664902,-500.0,0.00014246,2]
[335772935,1724484664911,-214.428382,0.00014246,2]
[335772936,1724484664921,-214.428382,0.00014246,2]
[335772937,1724484664931,-214.428382,0.00014246,2]
[335772938,1724484664940,-500.0,0.00014246,2]
[335772939,1724484664950,-214.428382,0.00014246,2]
[335772940,1724484664960,-214.428382,0.00014246,2]
[335772941,1724484664969,-214.428382,0.00014246,2]
[335772942,1724484664979,-3002.73,0.00014246,2]
[335772943,1724484664989,-1432.59,0.00014246,2]
[335772944,1724484664998,-2278.12,0.00014246,2]
[335772945,1724484665007,-151.0,0.00014246,2]
[335772946,1724484665016,-151.0,0.00014246,2]
[335772947,1724484665026,-151.0,0.00014246,2]
[335772948,1724484665035,-982.71,0.00014246,2]
[335772949,1724484665045,-500.0,0.00014246,2]
[335772950,1724484665054,-728.39,0.00014246,2]
[335772951,1724484665063,-151.0,0.00014246,2]
[335772952,1724484665072,-151.0,0.00014246,2]
[335772953,1724484665081,-151.0,0.00014246,2]
[335772954,1724484665090,-658.84,0.00014246,2]
[335772955,1724484665100,-239.120385,0.00014246,2]
[335772956,1724484665109,-1068.44,0.00014246,2]
[335772957,1724484665118,-700.276112,0.00014246,2]
[335772958,1724484665127,-700.276112,0.00014246,2]
[335772959,1724484665136,-700.276112,0.00014246,2]
[335772960,1724484665145,-1182.83,0.00014246,2]
[335772961,1724484665155,-1004.78,0.00014246,2]
[335772962,1724484665164,-500.0,0.00014246,2]
[335772963,1724484665174,-700.276112,0.00014246,2]
[335772964,1724484665183,-700.276112,0.00014246,2]
[335772965,1724484665192,-700.276112,0.00014246,2]
[335772966,1724484665201,-515.52931762,0.00014246,2]
[335772967,1724484665210,-861.85,0.00014246,2]
[335772968,1724484665221,-500.0,0.00014246,2]
[335772969,1724484665230,-502.0139742,0.00014246,2]
[335772970,1724484665240,-500.0,0.00014246,2]
[335772971,1724484665249,-1303.25,0.00014246,2]
[335772972,1724484665259,-500.0,0.00014246,2]
[335772973,1724484665268,-2086.89,0.00014246,2]
[335772974,1724484665277,-573.59354109,0.00014246,2]
[335772975,1724484665286,-500.0,0.00014246,2]
[335772976,1724484665296,-500.0,0.00014246,2]
[335772977,1724484665306,-500.0,0.00014246,2]
[335772978,1724484665315,-1201.76,0.00014246,2]
[335772979,1724484665325,-500.0,0.00014246,2]
[335772980,1724484665334,-682.7,0.00014246,2]
[335772981,1724484665344,-892.56,0.00014246,2]
[335772982,1724484665353,-500.0,0.00014246,2]
[335772983,1724484665363,-500.0,0.00014246,2]
[335772984,1724484665374,-500.0,0.00014246,2]
[335772985,1724484665384,-164.9585654,0.00014246,2]
[335772986,1724484665393,-1222.59,0.00014246,2]
[335772987,1724484665403,-500.0,0.00014246,2]
[335772988,1724484665412,-500.0,0.00014246,2]
[335772989,1724484665421,-261.17532049,0.00014246,2]
[335772990,1724484665431,-544.7,0.00014246,2]
[335772991,1724484665442,-1278.53,0.00014246,2]
[335772992,1724484665452,-500.0,0.00014246,2]
[335772993,1724484665464,-500.0,0.00014246,2]
[335772994,1724484665473,-776.64,0.00014246,2]
[335772995,1724484665483,-500.0,0.00014246,2]
[335772996,1724484665492,-241.376021,0.00014246,2]
[335772997,1724484665503,-241.376021,0.00014246,2]
[335772998,1724484665515,-241.376021,0.00014246,2]
[335772999,1724484665525,-500.0,0.00014246,2]
[335773000,1724484665535,-500.0,0.00014246,2]
[335773001,1724484665547,-1527.48,0.00014246,2]
[335773002,1724484665556,-241.376021,0.00014246,2]
[335773003,1724484665565,-241.376021,0.00014246,2]
[335773004,1724484665575,-746.010748,0.00014246,2]
[335773005,1724484665585,-241.376021,0.00014246,2]
[335773006,1724484665595,-746.010748,0.00014246,2]
[335773007,1724484665605,-746.010748,0.00014246,2]
[335773008,1724484665614,-500.0,0.00014246,2]
[335773009,1724484665623,-502.69690885,0.00014246,2]
[335773010,1724484665633,-746.010748,0.00014246,2]
[335773011,1724484665642,-746.010748,0.00014246,2]
[335773012,1724484665652,-746.010748,0.00014246,2]
[335773013,1724484665661,-500.0,0.00014246,2]
[335773014,1724484665671,-409.3967305,0.00014246,2]
[335773015,1724484665681,-500.0,0.00014246,2]
[335773016,1724484665692,-846.49,0.00014246,2]
[335773017,1724484665701,-1481.67,0.00014246,2]
[335773018,1724484665711,-269.35356,0.00014246,2]
[335773019,1724484665883,-269.35356,0.00014246,2]
[335773020,1724484665894,-269.35356,0.00014246,2]
[335773021,1724484665903,-655.71,0.00014246,2]
[335773022,1724484665912,-500.0,0.00014246,2]
[335773023,1724484665922,-500.0,0.00014246,2]
[335773024,1724484665932,-269.35356,0.00014246,2]
[335773025,1724484665942,-525.08,0.00014246,2]
[335773026,1724484665952,-269.35356,0.00014246,2]
[335773027,1724484665961,-269.35356,0.00014246,2]
[335773028,1724484665970,-1619.37,0.00014246,2]
[335773029,1724484665980,-500.0,0.00014246,2]
[335773030,1724484665989,-500.0,0.00014246,2]
[335773031,1724484665999,-500.0,0.00014246,2]
[335773032,1724484666009,-500.0,0.00014246,2]
[335773033,1724484666019,-1029.64,0.00014246,2]
[335773034,1724484666029,-1136.48,0.00014246,2]
[335773035,1724484666039,-367.59306205,0.00014246,2]
[335773036,1724484666051,-1571.65,0.00014246,2]
[335773037,1724484666062,-695.41,0.00014246,2]
[335773038,1724484666073,-1135.01,0.00014246,2]
[335773039,1724484666082,-500.0,0.00014246,2]
[335773040,1724484666092,-500.0,0.00014246,2]
[335773041,1724484666102,-604.65792644,0.00014246,2]
[335773042,1724484666110,-977.95,0.00014246,2]
[335773043,1724484666119,-679.55,0.00014246,2]
[335773044,1724484666128,-500.0,0.00014246,2]
[335773045,1724484666137,-500.0,0.00014246,2]
[335773046,1724484666146,-2088.61,0.00014246,2]
[335773047,1724484666156,-1217.72,0.00014246,2]
[335773048,1724484666165,-757.69,0.00014246,2]
[335773049,1724484666175,-713.31,0.00014246,2]
[335773050,1724484666185,-500.0,0.00014246,2]
[335773051,1724484666195,-638.67,0.00014246,2]
[335773052,1724484666207,-697.09,0.00014246,2]
[335773053,1724484666216,-500.0,0.00014246,2]
[335773054,1724484666227,-1769.3,0.00014246,2]
[335773055,1724484666239,-671.17,0.00014246,2]
[335773056,1724484666250,-521.16073387,0.00014246,2]
[335773057,1724484666260,-857.36,0.00014246,2]